bitfinex-derivatives/quotes_SOLF0:USTF0_20240911
["timestamp","ask_amount","ask_price","bid_price","bid_amount"]
[1726018564262,49.94190921,133.67,133.48,42.12]
[1726018564263,42.12,133.59,133.48,42.12]
[1726018564955,42.12,133.61,133.5,42.12]
[1726018565147,42.12,133.64,133.53,42.12]
[1726018565353,42.12,133.66,133.54,2.6397]
[1726018566054,42.12,133.66,133.55,42.12]
[1726018566359,42.12,133.68,133.55,42.12]
[1726018566856,42.12,133.68,133.59,3.7424]
[1726018567454,42.12,133.68,133.58,3.7428]
[1726018567655,45.88966044,133.74,133.58,3.7428]
[1726018567656,42.12,133.66,133.58,3.7428]
[1726018567850,42.12,133.68,133.54,2.6397]
[1726018568060,42.12,133.68,133.59,3.7423]
[1726018568255,42.12,133.68,133.56,42.12]
[1726018568456,42.12,133.7,133.58,42.12]
[1726018568651,42.12,133.7,133.59,1.4007]
[1726018569260,42.12,133.7,133.62,3.7417]
[1726018569461,42.12,133.7,133.59,1.4007]
[1726018569857,42.12,133.7,133.62,3.7416]
[1726018570163,42.12,133.7,133.59,1.4007]
[1726018571166,46.69,133.71,133.59,48.0907]
[1726018572064,46.69,133.73,133.61,46.69]
[1726018572266,46.69,133.81,133.59,1.4007]
[1726018572267,46.69,133.75,133.63,46.69]
[1726018572769,46.69,133.73,133.62,2.5843]
[1726018572966,46.69,133.71,133.62,1.2959]
[1726018573857,46.69,133.74,133.62,1.2959]
[1726018575364,46.69,133.74,133.64,46.69]
[1726018575570,46.69,133.76,133.64,46.69]
[1726018575870,46.69,133.76,133.67,3.7403]
[1726018576073,46.69,133.76,133.64,46.69]
[1726018576264,46.69,133.76,133.67,3.7401]
[1726018576566,46.69,133.78,133.66,46.69]
[1726018576774,46.69,133.78,133.68,3.7398]
[1726018577074,46.69,133.78,133.67,1.3986]
[1726018577370,46.69,133.76,133.68,1.3667]
[1726018577569,46.69,133.76,133.67,1.3986]
[1726018579067,224.0,133.82,133.68,46.69]
[1726018579068,46.69,133.8,133.68,46.69]
[1726018579262,224.0,133.82,133.67,1.3986]
[1726018579263,46.69,133.78,133.67,1.3986]
[1726018579469,46.69,133.78,133.68,3.7398]
[1726018579662,46.69,133.78,133.67,1.3986]
[1726018580062,46.69,133.74,133.67,1.3986]
[1726018580286,46.69,133.74,133.63,1.3667]
[1726018581173,46.69,133.71,133.63,1.3667]
[1726018582163,46.69,133.74,133.63,48.0567]
[1726018582572,46.69,133.72,133.63,1.3667]
[1726018582766,46.69,133.72,133.62,1.2959]
[1726018583473,46.69,133.74,133.63,46.69]
[1726018583674,46.69,133.76,133.63,46.69]
[1726018584270,28.75,133.76,133.64,28.75]
[1726018584777,28.75,133.76,133.68,3.7399]
[1726018585271,28.75,133.78,133.67,28.75]
[1726018585977,28.75,133.78,133.7,3.7394]
[1726018586373,28.75,133.81,133.69,28.75]
[1726018586571,28.75,133.81,133.7,1.3667]
[1726018587774,28.75,133.81,133.7,5.106]
[1726018587973,28.75,133.81,133.7,1.3667]
[1726018588171,28.75,133.81,133.71,3.7392]
[1726018588775,28.75,133.81,133.72,3.7388]
[1726018589273,28.75,133.81,133.7,6.515]
[1726018589581,28.75,133.81,133.7,2.7757]
[1726018590266,28.75,133.81,133.7,4.1852]
[1726018591273,28.75,133.83,133.71,28.75]
[1726018591671,28.75,133.85,133.73,28.75]
[1726018591875,28.75,133.87,133.75,28.75]
[1726018592073,28.75,133.87,133.79,3.737]
[1726018592280,28.75,133.89,133.79,3.737]
[1726018592468,28.75,133.89,133.78,28.75]
[1726018592869,7.80605979,133.96,133.78,28.75]
[1726018593070,28.75,133.9,133.79,3.7367]
[1726018593269,28.75,133.9,133.78,31.4323]
[1726018594765,28.75,133.9,133.78,35.1695]
[1726018594964,28.75,133.9,133.78,31.4323]
[1726018595169,28.75,133.85,133.74,28.75]
[1726018595366,28.75,133.83,133.71,28.75]
[1726018595779,28.75,133.83,133.71,32.47346786]
[1726018595971,28.75,133.83,133.73,3.7384]
[1726018596171,46.67,133.83,133.72,46.67]
[1726018596375,46.67,133.83,133.74,3.7381]
[1726018596972,46.67,133.83,133.72,46.67]
[1726018597177,46.67,133.83,133.71,3.72346786]
[1726018597178,46.67,133.81,133.7,46.67]
[1726018597375,46.67,133.81,133.7,50.3538565]
[1726018597574,46.67,133.81,133.72,3.7389]
[1726018597769,7.80605979,133.96,133.72,46.67]
[1726018598075,7.80605979,133.96,133.74,46.67]
[1726018598076,46.67,133.86,133.74,46.67]
[1726018598475,46.67,133.86,133.72,46.67]
[1726018598869,46.67,133.86,133.75,46.67]
[1726018599077,46.67,133.86,133.75,50.34352281]
[1726018599283,46.67,133.86,133.76,3.7377]
[1726018599778,46.67,133.86,133.75,50.408]
[1726018599973,46.67,133.86,133.75,46.67]
[1726018600174,46.67,133.88,133.77,46.67]
[1726018600374,46.67,133.88,133.79,3.7369]
[1726018600570,46.67,133.9,133.77,46.67]
[1726018600772,46.67,133.9,133.78,2.5697]
[1726018600980,46.67,133.9,133.79,3.7368]
[1726018601173,46.67,133.9,133.78,2.5697]
[1726018601574,46.67,133.9,133.78,6.3067]
[1726018601781,46.67,133.9,133.78,2.5697]
[1726018602187,46.67,133.9,133.79,3.7367]
[1726018602379,46.67,133.88,133.78,2.5697]
[1726018602680,46.67,133.88,133.78,1.2903]
[1726018604079,46.67,133.86,133.75,54.07529678]
[1726018604283,46.67,133.86,133.74,1.2794]
[1726018604486,46.67,133.94,133.74,1.2794]
[1726018604487,46.67,133.84,133.74,1.2794]
[1726018605085,46.67,133.94,133.75,46.67]
[1726018605086,46.67,133.87,133.75,46.67]
[1726018605289,46.67,133.87,133.75,50.33916575]
[1726018605589,46.67,133.84,133.74,1.2794]
[1726018606090,3.652345,133.9,133.74,1.2794]
[1726018606091,46.67,133.87,133.74,1.2794]
[1726018606290,46.67,133.87,133.75,3.71663764]
[1726018606488,46.67,133.87,133.74,1.2794]
[1726018606786,46.67,133.85,133.74,1.2794]
[1726018607281,46.67,133.87,133.75,46.67]
[1726018607484,46.67,133.89,133.75,50.3674727]
[1726018607686,46.67,133.89,133.75,50.49907133]
[1726018607892,46.67,133.91,133.78,46.67]
[1726018608092,46.67,133.91,133.8,46.67]
[1726018608702,50.37981007,133.91,133.8,46.67]
[1726018608902,46.67,133.89,133.78,46.67]
[1726018609300,46.67,133.89,133.8,3.7366]
[1726018609498,46.67,133.89,133.78,46.67]
[1726018610296,46.67,133.89,133.78,50.4072]
[1726018610495,46.67,133.89,133.78,46.67]
[1726018611906,46.67,133.89,133.79,3.7367]
[1726018613107,46.67,133.89,133.78,46.67]
[1726018613798,46.67,133.91,133.8,46.67]
[1726018614610,46.67,133.93,133.82,3.736]
[1726018614908,46.67,133.93,133.82,46.67]
[1726018615107,46.67,133.93,133.83,3.7356]
[1726018615302,46.67,133.93,133.82,46.67]
[1726018616105,46.67,133.96,133.84,46.67]
[1726018616308,224.0,134.04,133.87,46.67]
[1726018616609,224.0,134.04,133.82,5.06124033]
[1726018616610,46.67,134.0,133.89,46.67]
[1726018617198,46.67,134.02,133.91,46.67]
[1726018618208,46.67,134.02,133.89,3.75364159]
[1726018618209,28.68,134.05,133.93,28.68]
[1726018618806,28.68,134.03,133.91,28.68]
[1726018619708,28.68,134.01,133.9,2.7185]
[1726018620112,28.68,134.03,133.91,28.68]
[1726018620508,28.68,134.03,133.9,2.7185]
[1726018620509,28.68,134.06,133.93,28.68]
[1726018620712,28.68,134.06,133.95,28.68]
[1726018620919,28.68,134.08,133.95,28.68]
[1726018621105,28.68,134.03,133.9,2.7185]
[1726018621311,28.68,134.03,133.91,28.68]
[1726018621518,3.66728902,134.08,133.94,28.68]
[1726018621816,28.68,134.08,133.96,28.68]
[1726018622216,28.68,134.1,133.98,28.68]
[1726018622519,28.68,134.14,134.02,28.68]
[1726018623209,28.68,134.17,134.05,28.68]
[1726018623519,28.68,134.14,134.02,28.68]
[1726018623919,28.68,134.17,134.05,28.68]
[1726018624513,28.68,134.17,134.05,32.4097]
[1726018624709,28.68,134.17,134.07,28.68]
[1726018625020,28.68,134.19,134.07,32.4092]
[1726018625318,28.68,134.19,134.07,28.68]
[1726018625507,28.68,134.17,134.04,28.68]
[1726018625711,3.74244346,134.21,134.04,28.68]
[1726018625915,28.68,134.2,134.07,28.68]
[1726018626118,28.68,134.18,134.07,28.68]
[1726018627210,28.68,134.15,134.05,1.3731]
[1726018627411,28.68,134.15,134.03,28.68]
[1726018627608,28.68,134.13,134.03,28.68]
[1726018627814,28.68,134.15,134.03,28.68]
[1726018628319,32.42487131,134.21,134.01,1.3731]
[1726018628320,28.68,134.13,134.01,1.3731]
[1726018628618,28.68,134.13,133.99,2.7271]
[1726018628619,28.68,134.1,133.99,2.7271]
[1726018628921,3.71055576,134.12,133.99,2.7271]
[1726018629120,28.68,134.14,134.01,28.68]
[1726018629313,1.08944635,134.13,134.03,28.68]
[1726018629517,28.68,134.16,134.03,28.68]
[1726018629717,1.08949125,134.15,134.03,32.4103]
[1726018630121,1.08949125,134.15,134.03,28.68]
[1726018630421,32.42487131,134.21,134.07,28.68]
[1726018630422,28.68,134.18,134.07,28.68]
[1726018630816,3.64196148,134.22,134.09,28.68]
[1726018631022,1.08993136,134.21,134.09,28.68]
[1726018631319,1.08993136,134.21,134.08,3.9395]
[1726018631517,28.68,134.21,134.1,28.68]
[1726018632110,28.68,134.23,134.1,28.68]
[1726018632312,224.0,134.36,134.14,28.68]
[1726018632514,28.68,134.28,134.15,3.7267]
[1726018632712,28.68,134.28,134.14,28.68]
[1726018632918,28.68,134.22,134.08,3.9395]
[1726018633131,28.68,134.22,134.09,28.68]
[1726018633630,28.68,134.22,134.11,28.68]
[1726018633820,28.68,134.22,134.08,3.9395]
[1726018633821,28.68,134.22,134.08,32.6195]
[1726018634017,28.68,134.19,134.08,3.9395]
[1726018634219,36.46598969,134.28,134.08,2.602]
[1726018634220,46.59,134.17,134.08,2.602]
[1726018635125,46.59,134.15,134.08,2.602]
[1726018635317,46.59,134.15,134.03,46.59]
[1726018635522,46.59,134.13,134.04,1.3671]
[1726018635722,46.59,134.15,134.04,1.3671]
[1726018636431,8.486,134.26,134.04,1.3671]
[1726018636432,1.0,134.26,134.06,46.59]
[1726018636636,46.59,134.2,134.08,46.59]
[1726018636818,46.59,134.18,134.06,46.59]
[1726018637127,46.59,134.18,134.04,5.097]
[1726018637128,46.59,134.16,134.04,47.9571]
[1726018637334,46.59,134.13,134.04,1.3671]
[1726018637530,46.59,134.15,134.04,47.9571]
[1726018639019,46.59,134.18,134.06,46.59]
[1726018639419,46.59,134.15,134.04,1.3671]
[1726018639627,46.59,134.15,134.04,5.0971]
[1726018639824,46.59,134.15,134.04,1.3671]
[1726018640032,46.59,134.17,134.06,46.59]
[1726018640825,46.58,134.17,134.06,46.58]
[1726018641427,46.58,134.17,134.04,1.3671]
[1726018641733,46.58,134.2,134.09,46.58]
[1726018641934,46.58,134.18,134.06,46.58]
[1726018642231,46.58,134.18,134.04,1.3671]
[1726018642232,46.58,134.21,134.08,46.58]
[1726018642433,46.58,134.23,134.11,46.58]
[1726018643625,46.58,134.23,134.11,47.8694]
[1726018644131,46.58,134.25,134.13,46.58]
[1726018644932,1.0,134.26,134.11,1.2894]
[1726018644933,46.58,134.22,134.11,47.8694]
[1726018645830,46.58,134.22,134.11,51.5972]
[1726018646037,46.58,134.22,134.11,47.8694]
[1726018646429,46.58,134.25,134.11,47.8694]
[1726018647135,46.58,134.22,134.11,47.8694]
[1726018648039,46.58,134.22,134.11,46.58]
[1726018648235,46.58,134.22,134.09,1.3049]
[1726018648236,46.58,134.2,134.1,2.6613]
[1726018648439,197.54448776,134.3,134.1,2.6613]
[1726018648739,46.58,134.21,134.1,2.6613]
[1726018649930,46.58,134.18,134.1,1.2898]
[1726018651139,46.58,134.16,134.04,46.58]
[1726018651341,46.58,134.16,134.05,1.3528]
[1726018651640,46.58,134.14,134.05,1.3528]
[1726018652540,46.54,134.11,134.02,1.3038]
[1726018652738,46.54,134.11,134.01,1.3528]
[1726018652739,46.54,134.09,134.01,1.3528]
[1726018652942,46.54,134.09,133.97,46.54]
[1726018653138,46.54,134.09,133.95,3.7325]
[1726018653139,46.54,134.07,133.95,46.54]
[1726018653448,46.54,134.03,133.94,4.0211]
[1726018653634,46.54,134.03,133.94,2.6884]
[1726018654132,28.68,134.07,133.94,2.6884]
[1726018655242,28.68,134.01,133.9,28.68]
[1726018655942,28.68,133.99,133.89,2.6464]
[1726018656142,46.65,133.98,133.89,2.6464]
[1726018656539,46.65,134.07,133.79,46.65]
[1726018656540,46.65,133.96,133.84,46.65]
[1726018658739,46.65,133.96,133.8,3.9597]
[1726018658740,46.65,133.94,133.82,46.65]
[1726018659141,46.65,133.92,133.8,50.6097]
[1726018659841,46.65,133.94,133.82,50.386]
[1726018660338,46.65,133.94,133.82,46.65]
[1726018660546,46.65,133.91,133.8,50.6097]
[1726018661638,46.65,133.93,133.82,46.65]
[1726018662636,46.65,133.93,133.8,50.6097]
[1726018662842,46.65,133.91,133.8,50.6097]
[1726018663241,46.65,133.93,133.82,46.65]
[1726018663950,46.65,133.95,133.82,46.65]
[1726018664951,46.65,133.95,133.84,3.7355]
[1726018665340,46.65,133.95,133.82,46.65]
[1726018665541,46.65,133.93,133.83,3.7358]
[1726018667152,46.65,133.91,133.8,50.6097]
[1726018668247,46.65,133.91,133.82,3.736]
[1726018668847,46.65,133.91,133.8,50.6097]
[1726018669654,46.65,133.91,133.82,3.7361]
[1726018669959,50.34031174,133.94,133.82,3.7361]
[1726018670946,46.65,133.94,133.83,3.7358]
[1726018671956,7.80325921,133.99,133.82,50.386]
[1726018672160,46.65,133.92,133.82,50.386]
[1726018672457,46.65,133.92,133.83,3.7358]
[1726018672655,46.65,133.92,133.82,46.65]
[1726018674557,46.65,133.92,133.84,3.7354]
[1726018675055,46.65,133.96,133.84,46.65]
[1726018675355,46.65,133.94,133.82,46.65]
[1726018675565,46.65,133.92,133.83,3.7358]
[1726018676149,46.65,133.92,133.82,46.65]
[1726018676950,46.65,133.92,133.8,50.6097]
[1726018677747,46.65,133.92,133.82,3.736]
[1726018677951,46.65,133.92,133.8,50.6097]
[1726018678255,28.7,133.91,133.8,3.9597]
[1726018678452,28.7,133.91,133.81,3.7363]
[1726018679053,28.7,133.91,133.8,3.9597]
[1726018679258,28.7,133.86,133.75,28.7]
[1726018679456,28.7,133.84,133.76,1.3766]
[1726018679650,256.47092331,133.94,133.76,1.3766]
[1726018679855,28.7,133.85,133.76,1.3766]
[1726018680354,28.7,133.89,133.77,28.7]
[1726018680758,28.7,133.89,133.81,3.7364]
[1726018681062,28.7,133.89,133.79,28.7]
[1726018682764,28.7,133.93,133.81,28.7]
[1726018683062,28.7,133.93,133.82,2.7054]
[1726018683453,28.7,133.93,133.83,1.307]
[1726018683762,28.7,133.93,133.84,3.7354]
[1726018684063,28.7,133.91,133.83,1.307]
[1726018684656,224.0,133.98,133.84,28.7]
[1726018684859,28.7,133.96,133.84,28.7]
[1726018685055,28.7,133.96,133.86,3.7348]
[1726018685760,28.7,133.96,133.84,28.7]
[1726018686359,28.7,133.96,133.87,3.7345]
[1726018686859,28.7,133.96,133.84,28.7]
[1726018687057,28.7,133.94,133.83,1.307]
[1726018687261,32.48446569,133.94,133.83,1.307]
[1726018687456,32.48446569,133.94,133.83,5.0427]
[1726018687658,28.7,133.96,133.83,1.307]
[1726018687856,28.7,133.96,133.85,28.7]
[1726018688056,28.7,133.98,133.88,28.7]
[1726018688261,224.0,134.04,133.9,28.7]
[1726018688262,28.7,134.0,133.9,28.7]
[1726018688465,28.7,134.0,133.93,3.7331]
[1726018688665,28.7,134.0,133.91,2.6898]
[1726018688967,28.7,134.02,133.93,3.7329]
[1726018689463,28.7,134.02,133.91,2.6898]
[1726018689657,28.7,134.02,133.92,28.7]
[1726018690058,28.7,134.02,133.92,32.4333]
[1726018691867,28.7,134.02,133.93,3.7328]
[1726018692168,28.7,134.02,133.92,28.7]
[1726018692370,28.7,134.02,133.94,3.7326]
[1726018693166,189.76502789,134.05,133.95,3.7325]
[1726018693167,218.46502789,134.05,133.95,3.7325]
[1726018693359,218.46502789,134.05,133.95,28.7]
[1726018693360,28.7,134.05,133.95,28.7]
[1726018693561,32.37354402,134.05,133.92,28.7]
[1726018693756,28.7,134.02,133.91,2.6898]
[1726018694968,28.7,134.0,133.91,2.6898]
[1726018695157,28.7,134.0,133.81,28.7]
[1726018695158,28.7,133.98,133.86,32.4348]
[1726018695359,32.42377066,133.98,133.86,32.4348]
[1726018695567,3.72377066,133.98,133.84,28.7]
[1726018695766,28.7,134.01,133.88,28.7]
[1726018695962,28.7,133.98,133.89,2.6285]
[1726018696166,46.64,133.98,133.89,2.6285]
[1726018697066,46.64,133.96,133.87,3.7347]
[1726018697367,3.77454596,134.01,133.87,50.42781692]
[1726018697368,46.64,133.98,133.87,50.42781692]
[1726018697560,46.64,133.98,133.87,46.64]
[1726018697755,46.64,134.0,133.91,3.7336]
[1726018697955,46.64,134.0,133.89,1.4059]
[1726018698560,46.64,134.0,133.89,5.1399]
[1726018698760,46.64,134.0,133.89,1.4059]
[1726018699067,46.64,133.98,133.89,1.4059]
[1726018699572,46.64,133.98,133.9,3.7338]
[1726018699970,46.64,133.98,133.89,1.4059]
[1726018700164,46.64,134.0,133.91,3.7335]
[1726018701558,46.64,134.0,133.9,2.7795]
[1726018701559,46.64,134.0,133.92,3.7333]
[1726018702070,46.64,134.0,133.9,2.7795]
[1726018702868,46.64,134.0,133.93,3.733]
[1726018703070,46.64,134.0,133.9,2.7795]
[1726018703368,46.64,134.05,133.93,46.64]
[1726018703671,50.30278922,134.05,133.93,46.64]
[1726018703872,50.30278922,134.05,133.97,3.7319]
[1726018704066,46.64,134.05,133.93,46.64]
[1726018704464,46.64,134.05,133.9,2.7795]
[1726018704465,50.44703457,134.07,133.98,3.7316]
[1726018704962,50.44703457,134.07,133.95,46.64]
[1726018705164,46.64,134.05,133.96,1.3475]
[1726018706267,46.64,134.05,133.96,5.0797]
[1726018706463,46.64,134.05,133.96,1.3475]
[1726018708374,46.64,134.07,133.96,47.9875]
[1726018708569,50.40950645,134.07,133.97,3.7319]
[1726018708970,50.40950645,134.07,133.96,51.7196]
[1726018709169,50.40950645,134.07,133.96,47.9875]
[1726018709668,1.09249368,134.06,133.96,51.7197]
[1726018709972,50.40950645,134.07,133.96,51.7197]
[1726018710473,50.40950645,134.07,133.91,46.64]
[1726018710474,46.64,134.03,133.91,46.64]
[1726018711274,46.64,134.03,133.9,2.7795]
[1726018711275,46.64,134.05,133.96,3.732]
[1726018711469,46.64,134.05,133.94,46.64]
[1726018711669,46.64,134.05,133.94,50.38150589]
[1726018711871,50.40950645,134.07,133.98,3.7314]
[1726018712074,46.64,134.07,133.98,3.7314]
[1726018712273,7.79539333,134.12,133.98,3.7314]
[1726018712474,46.64,134.07,133.98,3.7314]
[1726018713067,46.64,134.05,133.95,1.3965]
[1726018713669,46.64,134.05,133.96,3.732]
[1726018713874,46.64,134.07,133.96,46.64]
[1726018714373,46.64,134.07,133.97,3.7317]
[1726018716080,28.66,134.09,133.98,28.66]
[1726018716275,1.09193926,134.08,133.98,28.66]
[1726018716472,1.09193926,134.08,133.99,3.7312]
[1726018716971,28.66,134.09,133.98,28.66]
[1726018717186,1.09189033,134.08,133.98,30.0652]
[1726018718483,28.66,134.11,134.0,28.66]
[1726018718684,1.09211643,134.1,134.0,28.66]
[1726018720586,28.66,134.14,134.0,28.66]
[1726018720587,28.66,134.14,134.02,28.66]
[1726018720772,28.66,134.14,134.04,3.7299]
[1726018720976,1.09244092,134.13,134.04,3.7299]
[1726018721280,1.09244092,134.13,134.04,1.3101]
[1726018721481,1.09244092,134.13,134.04,5.04]
[1726018721873,1.09244092,134.13,134.04,1.3101]
[1726018722072,28.66,134.14,134.04,5.0401]
[1726018722279,1.0926059,134.13,134.05,1.2954]
[1726018722876,28.66,134.14,134.05,1.2954]
[1726018723078,32.44091608,134.16,134.05,1.2954]
[1726018723279,1.09277025,134.15,134.05,1.2954]
[1726018723784,28.66,134.14,134.05,1.2954]
[1726018723983,29.75266771,134.14,134.05,1.2954]
[1726018724178,28.66,134.14,134.05,1.2954]
[1726018725389,28.66,134.14,134.05,5.0249]
[1726018725583,1.0,134.2,134.05,1.2954]
[1726018725584,28.66,134.17,134.05,1.2954]
[1726018725782,28.66,134.17,134.07,28.66]
[1726018725987,3.67465487,134.18,134.07,28.66]
[1726018726486,224.0,134.25,134.09,32.3884]
[1726018726780,28.66,134.2,134.09,28.66]
[1726018726982,1.09285191,134.19,134.09,28.66]
[1726018727196,7.78751424,134.26,134.09,28.66]
[1726018727386,28.66,134.2,134.09,28.66]
[1726018728189,28.66,134.23,134.11,28.66]
[1726018728491,4.86736478,134.22,134.11,28.66]
[1726018728688,3.77442484,134.22,134.11,28.66]
[1726018728883,28.66,134.23,134.12,3.7277]
[1726018729082,28.66,134.23,134.11,28.66]
[1726018729289,32.31620602,134.25,134.13,28.66]
[1726018729583,32.31620602,134.25,134.15,3.7268]
[1726018729788,224.0,134.3,134.17,28.66]
[1726018730090,29.75334021,134.29,134.19,3.7256]
[1726018730392,28.66,134.29,134.19,3.7256]
[1726018730687,28.66,134.29,134.17,28.66]
[1726018730887,3.66574709,134.3,134.19,28.66]
[1726018731085,28.66,134.31,134.2,5.0682]
[1726018731281,28.66,134.31,134.2,6.4748]
[1726018731785,32.37234715,134.31,134.2,6.4748]
[1726018731983,32.37234715,134.31,134.2,2.7493]
[1726018734283,32.37234715,134.31,134.2,6.4747]
[1726018734482,28.66,134.31,134.2,6.4747]
[1726018734682,28.66,134.31,134.21,28.66]
[1726018736785,28.66,134.31,134.21,32.3853]
[1726018737586,28.66,134.31,134.21,28.66]
[1726018738183,28.66,134.29,134.2,4.0427]
[1726018738381,28.66,134.32,134.2,4.0427]
[1726018739191,28.66,134.32,134.2,7.7681]
[1726018739192,32.30686591,134.32,134.2,7.7681]
[1726018739482,32.30686591,134.32,134.2,4.0427]
[1726018740091,1.09333915,134.31,134.2,4.0427]
[1726018741088,28.66,134.3,134.2,2.7493]
[1726018741286,28.66,134.3,134.17,28.66]
[1726018741287,1.09333915,134.29,134.17,28.66]
[1726018741486,1.09333915,134.29,134.17,32.3864]
[1726018741686,1.09333915,134.29,134.17,3.7264]
[1726018741880,1.09333915,134.29,134.17,32.3864]
[1726018742287,1.09333915,134.29,134.17,28.66]
[1726018742592,28.66,134.28,134.15,28.66]
[1726018742787,28.66,134.25,134.15,28.66]
[1726018742984,28.66,134.25,134.14,4.141]
[1726018743291,32.45491575,134.25,134.14,4.141]
[1726018743483,28.66,134.27,134.15,28.66]
[1726018743686,32.3673207,134.27,134.15,28.66]
[1726018743884,1.09302825,134.26,134.15,28.66]
[1726018744188,1.09302825,134.26,134.14,4.141]
[1726018744791,28.66,134.23,134.14,4.141]
[1726018745689,32.3673207,134.27,134.14,7.8681]
[1726018745690,28.66,134.26,134.14,7.8681]
[1726018745896,1.09294692,134.25,134.14,7.8681]
[1726018746193,28.66,134.23,134.14,2.735]
[1726018746393,1.09271803,134.22,134.14,2.735]
[1726018746689,28.66,134.23,134.14,2.735]
[1726018746894,1.09268749,134.22,134.1,28.66]
[1726018747093,28.66,134.23,134.1,28.66]
[1726018747397,28.66,134.26,134.13,28.66]
[1726018747583,28.66,134.26,134.15,28.66]
[1726018747985,28.66,134.26,134.13,28.66]
[1726018748187,28.66,134.23,134.11,28.66]
[1726018748992,28.66,134.23,134.13,28.66]
[1726018749193,28.66,134.26,134.13,28.66]
[1726018749392,28.66,134.23,134.13,28.66]
[1726018750295,28.66,134.23,134.11,28.66]
[1726018751192,28.66,134.23,134.11,32.388]
[1726018751905,28.66,134.23,134.11,28.66]
[1726018752301,28.66,134.23,134.11,32.388]
[1726018752797,28.66,134.26,134.13,28.66]
[1726018753302,28.66,134.26,134.11,28.66]
[1726018753595,28.66,134.22,134.11,28.66]
[1726018755000,28.66,134.22,134.11,32.3878]
[1726018755301,28.66,134.2,134.08,2.6318]
[1726018755503,28.66,134.2,134.08,31.2918]
[1726018755802,28.66,134.22,134.11,28.66]
[1726018756301,28.66,134.22,134.11,32.3879]
[1726018756503,28.66,134.22,134.11,28.66]
[1726018757898,28.66,134.26,134.15,32.3867]
[1726018758107,28.66,134.26,134.16,2.6956]
[1726018759303,28.66,134.26,134.16,4.0273]
[1726018759605,28.66,134.28,134.16,4.0273]
[1726018759807,28.66,134.28,134.17,28.66]
[1726018760009,28.66,134.34,134.2,28.66]
[1726018760010,32.41037052,134.3,134.2,28.66]
[1726018762616,28.66,134.3,134.2,28.66]
[1726018763015,28.66,134.3,134.18,28.66]
[1726018763513,28.66,134.3,134.18,32.386]
[1726018763718,28.66,134.3,134.16,4.0273]